fUST/lending_fUST_20240916
["ID","MTS","AMOUNT","RATE_DAILY","PERIOD"]
[338281145,1726480270674,-566.16,0.00019452,2]
[338281147,1726480270684,-500.0,0.00019452,2]
[338281149,1726480270694,-1722.57,0.00019452,2]
[338281151,1726480270704,-500.0,0.00019452,2]
[338281153,1726480270717,-500.0,0.00019452,2]
[338281155,1726480270729,-500.0,0.00019452,2]
[338281157,1726480270740,-500.0,0.00019452,2]
[338281159,1726480270750,-500.0,0.00019452,2]
[338281161,1726480270759,-500.0,0.00019452,2]
[338281163,1726480270769,-838.19,0.00019452,2]
[338281165,1726480270779,-522.82368846,0.00019452,2]
[338281167,1726480270789,-513.24629551,0.00019452,2]
[338281169,1726480270799,-805.36,0.00019452,2]
[338281171,1726480270809,-817.35,0.00019452,2]
[338281173,1726480270819,-500.0,0.00019452,2]
[338281175,1726480270829,-755.83,0.00019452,2]
[338281177,1726480270839,-500.0,0.00019452,2]
[338281179,1726480270848,-500.0,0.00019452,2]
[338281181,1726480270858,-500.0,0.00019452,2]
[338281183,1726480270867,-500.0,0.00019452,2]
[338281185,1726480270877,-500.0,0.00019452,2]
[338281187,1726480270887,-500.0,0.00019452,2]
[338281189,1726480270898,-500.0,0.00019452,2]
[338281191,1726480270909,-686.14,0.00019452,2]
[338281194,1726480270919,-361.14698278,0.00019452,2]
[338281195,1726480270929,-500.0,0.00019452,2]
[338281198,1726480270938,-2023.35,0.00019452,2]
[338281199,1726480270952,-500.0,0.00019452,2]
[338281202,1726480270961,-500.0,0.00019452,2]
[338281203,1726480270971,-500.0,0.00019452,2]
[338281206,1726480270982,-500.0,0.00019452,2]
[338281208,1726480270993,-567.75199924,0.00019452,2]
[338281210,1726480271002,-500.0,0.00019452,2]
[338281212,1726480271012,-500.0,0.00019452,2]
[338281214,1726480271024,-500.0,0.00019452,2]
[338281216,1726480271034,-500.0,0.00019452,2]
[338281218,1726480271044,-500.0,0.00019452,2]
[338281220,1726480271053,-975.44,0.00019452,2]
[338281222,1726480271062,-500.0,0.00019452,2]
[338281224,1726480271072,-500.0,0.00019452,2]
[338281226,1726480271082,-754.82,0.00019452,2]
[338281228,1726480271092,-500.0,0.00019452,2]
[338281230,1726480271102,-500.0,0.00019452,2]
[338281232,1726480271112,-500.0,0.00019452,2]
[338281234,1726480271122,-500.0,0.00019452,2]
[338281236,1726480271132,-513.68,0.00019452,2]
[338281238,1726480271142,-500.0,0.00019452,2]
[338281240,1726480271151,-500.0,0.00019452,2]
[338281242,1726480271162,-500.0,0.00019452,2]
[338281244,1726480271173,-500.0,0.00019452,2]
[338281246,1726480271184,-500.0,0.00019452,2]
[338281248,1726480271193,-500.0,0.00019452,2]
[338281250,1726480271203,-500.0,0.00019452,2]
[338281252,1726480271213,-500.0,0.00019452,2]
[338281254,1726480271223,-500.0,0.00019452,2]
[338281256,1726480271232,-500.0,0.00019452,2]
[338281258,1726480271242,-2728.4,0.00019452,2]
[338281260,1726480271252,-500.0,0.00019452,2]
[338281262,1726480271262,-814.56,0.00019452,2]
[338281264,1726480271272,-559.36,0.00019452,2]
[338281266,1726480271281,-1113.58,0.00019452,2]
[338281268,1726480271290,-2270.2,0.00019452,2]
[338281270,1726480271300,-500.0,0.00019452,2]
[338281272,1726480271310,-500.0,0.00019452,2]
[338281274,1726480271320,-500.0,0.00019452,2]
[338281276,1726480271329,-151.0,0.00019452,2]
[338281278,1726480271339,-151.0,0.00019452,2]
[338281280,1726480271349,-151.0,0.00019452,2]
[338281282,1726480271360,-151.0,0.00019452,2]
[338281284,1726480271370,-151.0,0.00019452,2]
[338281286,1726480271380,-1687.86,0.00019452,2]
[338281288,1726480271390,-753.35,0.00019452,2]
[338281290,1726480271401,-500.0,0.00019452,2]
[338281292,1726480271410,-592.97,0.00019452,2]
[338281294,1726480271421,-2381.45,0.00019452,2]
[338281296,1726480271432,-500.0,0.00019452,2]
[338281298,1726480271441,-913.8,0.00019452,2]
[338281300,1726480271451,-500.0,0.00019452,2]
[338281302,1726480271461,-500.0,0.00019452,2]
[338281304,1726480271472,-295.80393893,0.00019452,2]
[338281307,1726480271482,-500.0,0.00019452,2]
[338281309,1726480271492,-500.0,0.00019452,2]
[338281311,1726480271502,-1143.69,0.00019452,2]
[338281313,1726480271512,-248.04850227,0.00019452,2]
[338281315,1726480271521,-500.0,0.00019452,2]
[338281317,1726480271531,-500.0,0.00019452,2]
[338281319,1726480271541,-500.0,0.00019452,2]
[338281321,1726480271551,-500.0,0.00019452,2]
[338281323,1726480271561,-1869.19,0.00019452,2]
[338281325,1726480271570,-500.0,0.00019452,2]
[338281327,1726480271580,-1545.45,0.00019452,2]
[338281329,1726480271591,-502.52044715,0.00019452,2]
[338281331,1726480271602,-500.0,0.00019452,2]
[338281333,1726480271611,-1560.25,0.00019452,2]
[338281335,1726480271622,-2285.26,0.00019452,2]
[338281337,1726480271631,-511.55222773,0.00019452,2]
[338281339,1726480271641,-500.0,0.00019452,2]
[338281341,1726480271651,-1958.98,0.00019452,2]
[338281343,1726480271661,-1085.74,0.00019452,2]
[338281345,1726480271670,-376.94589899,0.00019452,2]
[338281347,1726480271681,-618.36,0.00019452,2]
[338281349,1726480271691,-500.0,0.00019452,2]
[338281351,1726480271700,-2019.41,0.00019452,2]
[338281353,1726480271711,-151.0,0.00019452,2]
[338281355,1726480271721,-151.0,0.00019452,2]
[338281358,1726480271732,-151.0,0.00019452,2]
[338281360,1726480271741,-151.0,0.00019452,2]
[338281362,1726480271751,-151.0,0.00019452,2]
[338281364,1726480271760,-848.49,0.00019452,2]
[338281366,1726480271770,-186.071952,0.00019452,2]
[338281368,1726480271780,-500.0,0.00019452,2]
[338281370,1726480271791,-720.4,0.00019452,2]
[338281371,1726480271802,-780.27,0.00019452,2]
[338281373,1726480271812,-1659.07,0.00019452,2]
[338281375,1726480271822,-500.0,0.00019452,2]
[338281377,1726480271831,-1031.97,0.00019452,2]
[338281379,1726480271841,-990.46,0.00019452,2]
[338281381,1726480271851,-500.0,0.00019452,2]
[338281383,1726480271861,-4335.59,0.00019452,2]
[338281385,1726480271871,-866.58,0.00019452,2]
[338281388,1726480271881,-500.0,0.00019452,2]
[338281390,1726480271892,-500.0,0.00019452,2]
[338281392,1726480271902,-3081.57,0.00019452,2]
[338281394,1726480271912,-576.48,0.00019452,2]
[338281396,1726480271922,-500.0,0.00019452,2]
[338281398,1726480271932,-503.50943735,0.00019452,2]
[338281413,1726480272088,-1988.36,0.00019452,2]
[338281416,1726480272100,-500.0,0.00019452,2]
[338281418,1726480272111,-822.08,0.00019452,2]
[338281420,1726480272121,-575.25536785,0.00019452,2]
[338281422,1726480272130,-500.0,0.00019452,2]
[338281424,1726480272142,-537.25,0.00019452,2]
[338281426,1726480272152,-500.0,0.00019452,2]
[338281428,1726480272162,-500.0,0.00019452,2]
[338281430,1726480272173,-501.20946766,0.00019452,2]
[338281432,1726480272183,-500.0,0.00019452,2]
[338281434,1726480272193,-500.0,0.00019452,2]
[338281436,1726480272204,-500.0,0.00019452,2]
[338281438,1726480272214,-508.16412891,0.00019452,2]
[338281440,1726480272224,-1092.32,0.00019452,2]
[338281442,1726480272235,-500.0,0.00019452,2]
[338281444,1726480272245,-622.09,0.00019452,2]
[338281446,1726480272255,-528.67,0.00019452,2]
[338281448,1726480272266,-1617.08,0.00019452,2]
[338281449,1726480272276,-900.86,0.00019452,2]
[338281451,1726480272287,-211.78010856,0.00019452,2]
[338281453,1726480272296,-151.0,0.00019452,2]
[338281455,1726480272306,-151.0,0.00019452,2]
[338281457,1726480272316,-151.0,0.00019452,2]
[338281459,1726480272326,-151.0,0.00019452,2]
[338281461,1726480272336,-193.168949,0.00019452,2]
[338281463,1726480272346,-500.0,0.00019452,2]
[338281465,1726480272356,-500.0,0.00019452,2]
[338281467,1726480272366,-500.0,0.00019452,2]
[338281469,1726480272376,-869.38,0.00019452,2]
[338281471,1726480272386,-500.0,0.00019452,2]
[338281473,1726480272397,-500.0,0.00019452,2]
[338281476,1726480272409,-500.0,0.00019452,2]
[338281478,1726480272419,-853.75,0.00019452,2]
[338281480,1726480272431,-500.0,0.00019452,2]
[338281482,1726480272441,-500.00234067,0.00019452,2]
[338281484,1726480272451,-500.0,0.00019452,2]
[338281486,1726480272462,-331.45647824,0.00019452,2]
[338281488,1726480272472,-1090.21,0.00019452,2]
[338281490,1726480272483,-3408.97,0.00019452,2]
[338281492,1726480272494,-500.0,0.00019452,2]
[338281494,1726480272504,-500.0,0.00019452,2]
[338281496,1726480272514,-500.53040301,0.00019452,2]
[338281498,1726480272524,-500.0,0.00019452,2]
[338281500,1726480272533,-688.4,0.00019452,2]
[338281502,1726480272543,-500.0,0.00019452,2]
[338281504,1726480272553,-500.0,0.00019452,2]
[338281506,1726480272564,-500.0,0.00019452,2]
[338281508,1726480272574,-157.339695,0.00019452,2]
[338281510,1726480272586,-500.0,0.00019452,2]
[338281512,1726480272596,-157.339695,0.00019452,2]
[338281514,1726480272606,-157.339695,0.00019452,2]
[338281516,1726480272616,-157.339695,0.00019452,2]
[338281518,1726480272626,-157.339695,0.00019452,2]
[338281520,1726480272635,-500.0,0.00019452,2]
[338281522,1726480272645,-157.339695,0.00019452,2]
[338281524,1726480272655,-2284.26,0.00019452,2]
[338281526,1726480272666,-157.339695,0.00019452,2]
[338281528,1726480272677,-157.339695,0.00019452,2]
[338281530,1726480272687,-157.339695,0.00019452,2]
[338281532,1726480272697,-157.339695,0.00019452,2]
[338281534,1726480272707,-496.42297456,0.00019452,2]
[338281536,1726480272718,-500.0,0.00019452,2]
[338281538,1726480272728,-500.0,0.00019452,2]
[338281540,1726480272738,-500.0,0.00019452,2]
[338281542,1726480272748,-911.12,0.00019452,2]
[338281544,1726480272758,-500.0,0.00019452,2]
[338281546,1726480272768,-4164.09,0.00019452,2]
[338281548,1726480272778,-500.0,0.00019452,2]
[338281550,1726480272788,-500.0,0.00019452,2]
[338281552,1726480272798,-500.0,0.00019452,2]
[338281554,1726480272808,-500.0,0.00019452,2]
[338281556,1726480272818,-500.0,0.00019452,2]
[338281558,1726480272828,-500.0,0.00019452,2]
[338281560,1726480272838,-1732.55,0.00019452,2]
[338281562,1726480272847,-500.0,0.00019452,2]
[338281564,1726480272857,-2886.04,0.00019452,2]
[338281566,1726480272867,-500.0,0.00019452,2]
[338281568,1726480272877,-500.0,0.00019452,2]
[338281570,1726480272886,-500.0,0.00019452,2]
[338281572,1726480272897,-1045.94,0.00019452,2]
[338281574,1726480272907,-500.0,0.00019452,2]
[338281576,1726480272917,-500.0,0.00019452,2]
[338281578,1726480272927,-562.64,0.00019452,2]
[338281580,1726480272937,-1053.28,0.00019452,2]
[338281582,1726480272950,-720.65,0.00019452,2]
[338281584,1726480272960,-504.18537589,0.00019452,2]
[338281586,1726480272970,-896.79,0.00019452,2]
[338281588,1726480272980,-500.0,0.00019452,2]
[338281590,1726480272991,-682.73,0.00019452,2]
[338281592,1726480273002,-500.0,0.00019452,2]
[338281594,1726480273011,-500.0,0.00019452,2]
[338281596,1726480273022,-500.0,0.00019452,2]
[338281598,1726480273032,-500.0,0.00019452,2]
[338281600,1726480273042,-568.59,0.00019452,2]
[338281602,1726480273051,-339.40549959,0.00019452,2]
[338281604,1726480273061,-1805.22,0.00019452,2]
[338281606,1726480273071,-500.0,0.00019452,2]
[338281607,1726480273080,-1042.76,0.00019452,2]
[338281608,1726480273090,-500.0,0.00019452,2]
[338281609,1726480273098,-500.0,0.00019452,2]
[338281610,1726480273108,-4896.4,0.00019452,2]
[338281611,1726480273118,-500.0,0.00019452,2]
[338281612,1726480273127,-500.0,0.00019452,2]
[338281613,1726480273137,-500.0,0.00019452,2]
[338281614,1726480273147,-4751.11,0.00019452,2]
[338281615,1726480273157,-787.15,0.00019452,2]
[338281616,1726480273167,-500.0,0.00019452,2]
[338281617,1726480273177,-523.58732554,0.00019452,2]
[338281618,1726480273188,-793.83,0.00019452,2]
[338281619,1726480273198,-835.11,0.00019452,2]
[338281620,1726480273208,-500.0,0.00019452,2]
[338281621,1726480273218,-500.0,0.00019452,2]
[338281622,1726480273227,-500.0,0.00019452,2]
[338281623,1726480273237,-500.0,0.00019452,2]
[338281624,1726480273248,-500.0,0.00019452,2]
[338281626,1726480273258,-1406.35,0.00019452,2]
[338281628,1726480273268,-500.0,0.00019452,2]
[338281630,1726480273278,-500.0,0.00019452,2]
[338281632,1726480273288,-500.0,0.00019452,2]
[338281634,1726480273298,-1899.11,0.00019452,2]
[338281636,1726480273308,-500.0,0.00019452,2]
[338281638,1726480273318,-3386.07,0.00019452,2]
[338281640,1726480273330,-500.0,0.00019452,2]
[338281642,1726480273340,-500.0,0.00019452,2]
[338281644,1726480273350,-138600.96,0.00019452,2]
[338281646,1726480273360,-500.0,0.00019452,2]
[338281648,1726480273369,-544.51130896,0.00019452,2]
[338281650,1726480273379,-2542.18,0.00019452,2]
[338281652,1726480273389,-2814.29,0.00019452,2]
[338281654,1726480273399,-1703.43,0.00019452,2]
[338281656,1726480273408,-500.0,0.00019452,2]
[338281658,1726480273419,-5026.38,0.00019452,2]
[338281660,1726480273434,-616.25950313,0.00019452,2]
[338281662,1726480273445,-1706.69,0.00019452,2]
[338281664,1726480273454,-500.0,0.00019452,2]
[338281666,1726480273464,-200.0,0.00019452,2]
[338281668,1726480273474,-2882.97,0.00019452,2]
[338281671,1726480273484,-1501.22,0.00019452,2]
[338281673,1726480273494,-500.0,0.00019452,2]
[338281675,1726480273504,-1410.09,0.00019452,2]
[338281677,1726480273513,-500.0,0.00019452,2]
[338281679,1726480273523,-873.91,0.00019452,2]
[338281681,1726480273532,-500.0,0.00019452,2]
[338281683,1726480273542,-1313.95,0.00019452,2]
[338281685,1726480273552,-441.33156459,0.00019452,2]
[338281687,1726480273561,-500.0,0.00019452,2]
[338281689,1726480273570,-500.0,0.00019452,2]
[338281691,1726480273580,-500.0,0.00019452,2]
[338281693,1726480273590,-1344.7,0.00019452,2]
[338281695,1726480273600,-855.03,0.00019452,2]
[338281697,1726480273609,-516.29,0.00019452,2]
[338281699,1726480273619,-500.0,0.00019452,2]
[338281701,1726480273629,-6143.05,0.00019452,2]
[338281703,1726480273639,-759.89,0.00019452,2]
[338281705,1726480273648,-792.73,0.00019452,2]
[338281707,1726480273659,-584.91,0.00019452,2]
[338281709,1726480273669,-500.0,0.00019452,2]
[338281711,1726480273680,-603.04,0.00019452,2]
[338281713,1726480273690,-500.0,0.00019452,2]
[338281715,1726480273699,-500.0,0.00019452,2]
[338281717,1726480273708,-526.55640727,0.00019452,2]
[338281719,1726480273718,-500.0,0.00019452,2]
[338281721,1726480273728,-500.0,0.00019452,2]
[338281723,1726480273738,-500.0,0.00019452,2]
[338281725,1726480273748,-500.0,0.00019452,2]
[338281727,1726480273758,-659.36,0.00019452,2]
[338281729,1726480273769,-501.46191263,0.00019452,2]
[338281731,1726480273780,-500.0,0.00019452,2]
[338281733,1726480273790,-520.64193083,0.00019452,2]
[338281735,1726480273800,-500.0,0.00019452,2]
[338281737,1726480273810,-500.0,0.00019452,2]
[338281739,1726480273819,-500.0,0.00019452,2]
[338281741,1726480273830,-506.52725651,0.00019452,2]
[338281743,1726480273839,-54804.5,0.00019452,2]
[338281745,1726480273849,-1481.71,0.00019452,2]
[338281747,1726480273858,-500.0,0.00019452,2]
[338281749,1726480273868,-1594.86,0.00019452,2]
[338281751,1726480273878,-500.0,0.00019452,2]
[338281753,1726480273887,-500.0,0.00019452,2]
[338281755,1726480273898,-500.0,0.00019452,2]
[338281757,1726480273908,-522.31,0.00019452,2]
[338281759,1726480273918,-1752.95,0.00019452,2]
[338281761,1726480273931,-797.64,0.00019452,2]
[338281763,1726480273940,-69163.18,0.00019452,2]
[338281765,1726480273952,-500.0,0.00019452,2]
[338281767,1726480273962,-7402.16,0.00019452,2]
[338281769,1726480273972,-500.0,0.00019452,2]
[338281771,1726480273981,-500.0,0.00019452,2]
[338281773,1726480273991,-327.29331449,0.00019452,2]
[338281775,1726480274000,-503.96621713,0.00019452,2]
[338281777,1726480274010,-500.0,0.00019452,2]
[338281779,1726480274020,-9495.06,0.00019452,2]
[338281782,1726480274030,-551.46,0.00019452,2]
[338281784,1726480274039,-500.0,0.00019452,2]
[338281800,1726480274175,-500.85598556,0.00019452,2]
[338281802,1726480274199,-500.0,0.00019452,2]
[338281804,1726480274209,-2792.89,0.00019452,2]
[338281806,1726480274218,-500.0,0.00019452,2]
[338281808,1726480274228,-500.0,0.00019452,2]
[338281810,1726480274237,-500.0,0.00019452,2]
[338281812,1726480274247,-500.0,0.00019452,2]
[338281814,1726480274257,-6418.71,0.00019452,2]
[338281816,1726480274267,-502.88778492,0.00019452,2]
[338281818,1726480274277,-618.81805936,0.00019452,2]
[338281820,1726480274287,-5434.99,0.00019452,2]
[338281822,1726480274296,-163.5912942,0.00019452,2]
[338281824,1726480274305,-539.87,0.00019452,2]
[338281826,1726480274314,-1781.39,0.00019452,2]
[338281829,1726480274324,-500.0,0.00019452,2]
[338281831,1726480274334,-1318.77,0.00019452,2]
[338281833,1726480274343,-500.0,0.00019452,2]
[338281835,1726480274352,-500.0,0.00019452,2]
[338281837,1726480274362,-500.0,0.00019452,2]
[338281839,1726480274371,-1086.99,0.00019452,2]
[338281841,1726480274382,-735.36,0.00019452,2]
[338281843,1726480274393,-500.0,0.00019452,2]
[338281845,1726480274403,-509.77732047,0.00019452,2]
[338281847,1726480274414,-500.0,0.00019452,2]
[338281849,1726480274425,-151.0,0.00019452,2]
[338281851,1726480274435,-152.264487,0.00019452,2]
[338281853,1726480274444,-566.23,0.00019452,2]
[338281855,1726480274453,-586.72,0.00019452,2]
[338281857,1726480274462,-505.24352932,0.00019452,2]
[338281859,1726480274472,-500.0,0.00019452,2]
[338281861,1726480274481,-500.0,0.00019452,2]
[338281863,1726480274491,-716.63,0.00019452,2]
[338281865,1726480274501,-1412.9,0.00019452,2]
[338281867,1726480274510,-633.14,0.00019452,2]
[338281869,1726480274520,-17848.38,0.00019452,2]
[338281872,1726480274531,-500.0,0.00019452,2]
[338281874,1726480274541,-332.193581,0.00019452,2]
[338281876,1726480274550,-500.0,0.00019452,2]
[338281878,1726480274560,-332.193581,0.00019452,2]
[338281880,1726480274571,-2462.15,0.00019452,2]
[338281882,1726480274581,-332.193581,0.00019452,2]
[338281884,1726480274590,-332.193581,0.00019452,2]
[338281886,1726480274600,-500.0,0.00019452,2]
[338281888,1726480274610,-332.193581,0.00019452,2]
[338281890,1726480274620,-500.0,0.00019452,2]
[338281892,1726480274631,-332.193581,0.00019452,2]
[338281894,1726480274641,-500.0,0.00019452,2]
[338281896,1726480274651,-860.11,0.00019452,2]
[338281899,1726480274661,-332.193581,0.00019452,2]
[338281901,1726480274670,-4673.68,0.00019452,2]
[338281903,1726480274682,-332.193581,0.00019452,2]
[338281905,1726480274691,-934.19,0.00019452,2]
[338281907,1726480274700,-500.0,0.00019452,2]
[338281909,1726480274710,-1894.42,0.00019452,2]
[338281911,1726480274719,-500.0,0.00019452,2]
[338281913,1726480274729,-754.26,0.00019452,2]
[338281915,1726480274739,-31909.67,0.00019452,2]
[338281916,1726480274748,-5633.35,0.00019452,2]
[338281918,1726480274758,-6272.43,0.00019452,2]
[338281920,1726480274768,-500.0,0.00019452,2]
[338281923,1726480274778,-500.0,0.00019452,2]
[338281925,1726480274787,-500.0,0.00019452,2]
[338281927,1726480274798,-502.5517105,0.00019452,2]
[338281929,1726480274808,-842.71,0.00019452,2]
[338281931,1726480274818,-3706.88,0.00019452,2]
[338281933,1726480274827,-500.0,0.00019452,2]
[338281935,1726480274837,-1378.42,0.00019452,2]
[338281937,1726480274846,-500.0,0.00019452,2]
[338281939,1726480274855,-979.87,0.00019452,2]
[338281941,1726480274865,-500.0,0.00019452,2]
[338281943,1726480274875,-500.0,0.00019452,2]
[338281945,1726480274884,-583.0455966,0.00019452,2]
[338281947,1726480274894,-603.64,0.00019452,2]
[338281949,1726480274903,-500.0,0.00019452,2]
[338281951,1726480274913,-545.72,0.00019452,2]
[338281953,1726480274922,-500.0,0.00019452,2]
[338281955,1726480274933,-500.0,0.00019452,2]
[338281957,1726480274943,-500.0,0.00019452,2]
[338281959,1726480274955,-26893.2,0.00019452,2]
[338281961,1726480274965,-4061.1,0.00019452,2]
[338281963,1726480274974,-500.0,0.00019452,2]
[338281965,1726480274983,-500.0,0.00019452,2]
[338281968,1726480274995,-500.0,0.00019452,2]
[338281970,1726480275005,-500.0,0.00019452,2]
[338281972,1726480275015,-2523.31,0.00019452,2]
[338281974,1726480275026,-500.0,0.00019452,2]
[338281976,1726480275035,-916.82,0.00019452,2]
[338281978,1726480275045,-500.0,0.00019452,2]
[338281980,1726480275055,-516.25750328,0.00019452,2]
[338281982,1726480275064,-500.0,0.00019452,2]
[338281986,1726480275087,-500.0,0.00019452,2]
[338281989,1726480275104,-3999.24,0.00019452,2]
[338281992,1726480275127,-2415.42,0.00019452,2]
[338281996,1726480275150,-500.0,0.00019452,2]
[338281998,1726480275168,-949.27,0.00019452,2]
[338282002,1726480275193,-18665.93,0.00019452,2]
[338282005,1726480275214,-500.0,0.00019452,2]
[338282009,1726480275235,-1026.1,0.00019452,2]
[338282012,1726480275258,-521.28,0.00019452,2]
[338282015,1726480275278,-976.78,0.00019452,2]
[338282018,1726480275296,-1626.12,0.00019452,2]
[338282021,1726480275314,-1251.74,0.00019452,2]
[338282024,1726480275329,-500.0,0.00019452,2]
[338282027,1726480275346,-14025.37,0.00019452,2]
[338282030,1726480275363,-1943.44,0.00019452,2]
[338282033,1726480275380,-500.0,0.00019452,2]
[338282036,1726480275397,-1971.87,0.00019452,2]
[338282038,1726480275414,-500.0,0.00019452,2]
[338282042,1726480275434,-1838.44,0.00019452,2]
[338282044,1726480275451,-889.4,0.00019452,2]
[338282048,1726480275472,-500.0,0.00019452,2]
[338282050,1726480275487,-500.0,0.00019452,2]
[338282054,1726480275506,-2832.42,0.00019452,2]
[338282056,1726480275521,-151.73568,0.00019452,2]
[338282059,1726480275538,-151.73568,0.00019452,2]
[338282062,1726480275555,-395.112909,0.00019452,2]
[338282065,1726480275573,-151.73568,0.00019452,2]
[338282068,1726480275590,-395.112909,0.00019452,2]
[338282071,1726480275608,-151.73568,0.00019452,2]
[338282073,1726480275625,-395.112909,0.00019452,2]
[338282076,1726480275643,-395.112909,0.00019452,2]
[338282080,1726480275665,-500.0,0.00019452,2]
[338282082,1726480275684,-500.0,0.00019452,2]
[338282085,1726480275701,-992.56,0.00019452,2]
[338282088,1726480275718,-151.73568,0.00019452,2]
[338282091,1726480275735,-500.0,0.00019452,2]
[338282094,1726480275752,-151.73568,0.00019452,2]
[338282097,1726480275770,-151.73568,0.00019452,2]
[338282099,1726480275788,-151.73568,0.00019452,2]
[338282102,1726480275806,-151.0,0.00019452,2]
[338282105,1726480275824,-1828.08,0.00019452,2]
[338282108,1726480275842,-1079.73,0.00019452,2]
[338282111,1726480275861,-395.112909,0.00019452,2]
[338282114,1726480275879,-4130.56,0.00019452,2]
[338282117,1726480275895,-395.112909,0.00019452,2]
[338282119,1726480275912,-395.112909,0.00019452,2]
[338282122,1726480275929,-395.112909,0.00019452,2]
[338282125,1726480275947,-151.0,0.00019452,2]
[338282127,1726480275964,-151.0,0.00019452,2]
[338282130,1726480275981,-2109.31,0.00019452,2]
[338282133,1726480275998,-851.64,0.00019452,2]
[338282136,1726480276015,-607.3,0.00019452,2]
[338282139,1726480276032,-500.0,0.00019452,2]
[338282142,1726480276049,-500.0,0.00019452,2]
[338282144,1726480276066,-1699.2,0.00019452,2]
[338282147,1726480276083,-500.0,0.00019452,2]
[338282150,1726480276099,-2088.4,0.00019452,2]
[338282152,1726480276116,-1813.44,0.00019452,2]
[338282155,1726480276131,-1783.95,0.00019452,2]
[338282158,1726480276148,-3968.76,0.00019452,2]
[338282161,1726480276165,-500.0,0.00019452,2]
[338282163,1726480276182,-500.0,0.00019452,2]
[338282166,1726480276200,-500.0,0.00019452,2]
[338282169,1726480276218,-151.0,0.00019452,2]
[338282172,1726480276235,-151.0,0.00019452,2]
[338282175,1726480276252,-2548.01,0.00019452,2]
[338282177,1726480276268,-151.0,0.00019452,2]
[338282180,1726480276285,-151.0,0.00019452,2]
[338282183,1726480276302,-2034.661873,0.00019452,2]
[338282186,1726480276320,-500.0,0.00019452,2]
[338282188,1726480276336,-2034.661873,0.00019452,2]
[338282191,1726480276354,-500.0,0.00019452,2]
[338282194,1726480276371,-1321.28,0.00019452,2]
[338282196,1726480276381,-2034.661873,0.00019452,2]
[338282198,1726480276392,-2034.661873,0.00019452,2]
[338282200,1726480276402,-957.15,0.00019452,2]
[338282202,1726480276412,-500.0,0.00019452,2]
[338282204,1726480276421,-500.0,0.00019452,2]
[338282206,1726480276433,-500.0,0.00019452,2]
[338282208,1726480276443,-2034.661873,0.00019452,2]
[338282210,1726480276453,-2034.661873,0.00019452,2]
[338282212,1726480276463,-2034.661873,0.00019452,2]
[338282214,1726480276472,-2034.661873,0.00019452,2]
[338282216,1726480276482,-500.0,0.00019452,2]
[338282218,1726480276492,-3203.32,0.00019452,2]
[338282220,1726480276502,-1505.12,0.00019452,2]
[338282222,1726480276512,-501.42098262,0.00019452,2]
[338282224,1726480276523,-500.0,0.00019452,2]
[338282226,1726480276534,-151.0,0.00019452,2]
[338282262,1726480276865,-646.03,0.00019452,2]